Cogmind - Beta 13 *** ADVENTURER MODE // 2024.07.27 @ 07:04:26 Player: Jefffff Result: Destroyed by 61-I8V(R) with Subdweller Laser Performance ------------- Evolutions (0) 0 Regions Visited (2) 400 Robots Destroyed (23) 115 Value Destroyed (676) 676 Prototype IDs (0) 0 Alien Tech Used (0) 0 Bonus (0) 0 TOTAL SCORE: 1191 Bonus ------- None Cogmind --------- Core Integrity 0/250 Matter 273/300 Energy 100/100 System Corruption 0% Temperature Cool (6) Movement Rolling (115) Ox1 Location -10/Subcaves Parts ------- > --- POWER (1) -------- (None) > --- PROPULSION (2) --- Compact Wheel > --- UTILITY (2) ------ Large Storage Unit Utility Shielding > --- WEAPON (2) ------- Subdweller Machine Gun Makeshift Sword > --- INVENTORY (15) --- Light Ion Engine Improved Heat Sink Signal Interpreter Terrain Scanner Seismic Detector Targeting Computer ECM Suite Core Shielding Utility Shielding Tractor Beam Riot Gun Subdweller Laser Subdweller Laser Battle Rifle Plasma Cutter Peak State ------------ > --- POWER ------------ Ion Engine > --- PROPULSION ------- Aluminum Leg Makeshift Leg > --- UTILITY ---------- Large Storage Unit Utility Shielding > --- WEAPON ----------- Light Assault Rifle Subdweller Machine Gun > --- INVENTORY -------- Light Ion Engine Light Ion Engine Compact Wheel Improved Heat Sink Signal Interpreter Terrain Scanner Seismic Detector Targeting Computer ECM Suite Core Shielding Utility Shielding Tractor Beam Grenade Launcher Plasma Cutter Flamer [Rating: 12] Favorites ----------- Power Ion Engine Engine Ion Engine Propulsion Aluminum Leg Leg Aluminum Leg Wheel Compact Wheel Utility Large Storage Unit Storage Large Storage Unit Protection Utility Shielding Weapon Light Assault Rifle Ballistic Gun Light Assault Rifle Launcher Grenade Launcher Special Weapon Plasma Cutter Slashing Weapon Makeshift Sword Build | -11 -10 -10 ------- Run | Yrd Mat Sub Slots Evolved . | . . . Power . | . . . Propulsion . | . . . Utility . | . . . Weapon . | . . . Parts Attached 29 | 6 6 17 Power 3 | 1 1 1 Engine 3 | 1 1 1 Core . | . . . Reactor . | . . . Propulsion 5 | 2 1 2 Treads . | . . . Leg 4 | 2 1 1 Wheel 1 | . . 1 Hover . | . . . Flight . | . . . Utility 4 | 1 2 1 Device . | . . . Storage 3 | 1 2 . Processor . | . . . Hackware . | . . . Protection 1 | . . 1 Artifact . | . . . Weapon 17 | 2 2 13 Energy Gun . | . . . Energy Cannon . | . . . Ballistic Gun 10 | 2 . 8 Ballistic Cannon . | . . . Launcher 4 | . 1 3 Special Weapon 1 | . 1 . Impact Weapon . | . . . Slashing Weapon 2 | . . 2 Piercing Weapon . | . . . Special Melee Weapon . | . . . Unidentified Prototypes . | . . . Parts Lost 6 | . 1 5 Power 3 | . 1 2 Propulsion 1 | . . 1 Utility . | . . . Weapon 2 | . . 2 Highest Loss Streak 2 | . 1 2 To Critical Strikes . | . . . Average Slot Usage (%) 93 | . 96 89 Engine 13 | . 13 13 Leg 20 | . 28 9 Wheel 3 | . . 8 Storage 22 | . 25 18 Protection 4 | . . 9 Ballistic Gun 24 | . 25 22 Launcher 3 | . 2 3 Naked Turns . | . . . Heaviest Build 40 | 11 39 40 Greatest Support 30 | 20 20 30 Greatest Overweight (x) 1 | . 1 1 Average Overweight (x) . | . . . Largest Inventory Capacity 15 | 8 15 15 Average Capacity 13 | 5 12 15 Most Carried 15 | 5 15 15 Average Carried 12 | 3 10 14 Final Capacity 15 | 8 15 15 Final Carried 15 | . 15 15 Class Distribution -------------------- 100% | Mutant Dominant Class ---------------- Mutant | -10/Materials Mutant | -10/Subcaves Resources | -11 -10 -10 ----------- Run | Yrd Mat Sub Matter Collected 881 | 201 254 426 Remotely . | . . . Salvage Created 716 | . 505 211 Parts 54 | . 39 15 Haulers Intercepted 1 | . 1 . Recyclers Shooed . | . . . Parts Field Recycled . | . . . Retrieved Matter . | . . . Parts Self-Destructed 7 | . . 7 Prevented . | . . . Kills | -11 -10 -10 ------- Run | Yrd Mat Sub Combat Hostiles Destroyed 18 | . 9 9 Melee 2 | . . 2 Guns 15 | . 9 6 AOE 1 | . . 1 Classes Destroyed 6 | . 5 1 Hauler 1 | . 1 . Recycler 1 | . 1 . Watcher 3 | . 3 . Swarmer 3 | . 3 . Grunt 6 | . 6 . Subdweller 9 | . . 9 Best Kill Streak 5 | . 5 2 Combat Bots Only 4 | . 4 2 Max Kills in Single Turn 2 | . 2 1 Gunslinging 1 | . 1 . Exploded 1 | . . 1 Melee 1 | . . 1 Uniques/NPCs Destroyed . | . . . Combat | -11 -10 -10 -------- Run | Yrd Mat Sub Hostile Shots Fired 96 | . 33 63 Missed 29 | . 12 17 Damage Taken 1170 | . 222 948 Core 254 | . 48 206 Absorbed by Shields . | . . . Redirected to Shielding 25 | . . 25 Ignored by Resistances 314 | . 68 246 Core Remaining (%) 100 | 100 . . Volleys Fired 81 | . 34 47 Largest 2 | . 2 2 Hottest 55 | . 40 55 Shots Fired 134 | . 64 70 Gun 110 | . 60 50 Cannon . | . . . Launcher 22 | . 2 20 Special 2 | . 2 . Kinetic 110 | . 60 50 Thermal 2 | . 2 . Explosive 22 | . 2 20 Electromagnetic . | . . . Robot Hit Streak 27 | . 8 27 Robot Miss Streak 3 | . 3 1 Penetration Max . | . . . Secondary Targets 2 | . 2 . Max Gunslinging Chain 1 | . 1 . Shots Hit Robots 90 | . 40 50 Core Hits 47 | . 27 20 Critical Kills 2 | . 2 . Critical Parts Destroyed . | . . . Critical Strikes 5 | . 2 3 Destroy 5 | . 2 3 Melee Attacks 23 | . . 23 Impact . | . . . Slashing 23 | . . 23 Piercing . | . . . Sneak Attacks . | . . . Combat Hostiles . | . . . Follow-up Attacks . | . . . Damage Inflicted 1774 | . 522 1252 Guns 1042 | . 484 558 Cannons . | . . . Explosions 588 | . 38 550 Melee 144 | . . 144 Ramming . | . . . Kinetic 1042 | . 484 558 Thermal . | . . . Explosive 588 | . 38 550 Electromagnetic . | . . . Impact . | . . . Slashing 144 | . . 144 Piercing . | . . . Highest Corruption . | . . . Average Corruption . | . . . Corruption Purged . | . . . Corruption Blocked . | . . . Overload Shots . | . . . Overflow Damage . | . . . Projectiles . | . . . Explosions . | . . . Melee . | . . . Knockbacks . | . . . Impact . | . . . Kinetic . | . . . Secondary . | . . . Self-Inflicted Damage 48 | . 16 32 Shots 2 | . 1 1 Rammed . | . . . Targets Rammed . | . . . Kicked . | . . . Crushed . | . . . Highest Temperature 25 | . 25 . Average Temperature 8 | . 8 . Received Heat Transfer 312 | . 141 171 Siege Activations . | . . . Robots Corrupted . | . . . Combat Hostiles . | . . . Parts Fried . | . . . Impact Corruptions . | . . . Robots Melted . | . . . Combat Hostiles . | . . . Parts Melted . | . . . Heat Transferred . | . . . Parts Sabotaged . | . . . Parts Stolen . | . . . Parts Stripped . | . . . Power Chain Reactions . | . . . Alert | -11 -10 -10 ------- Run | Yrd Mat Sub Peak Influence 136 | . 136 . Initial . | . . . Average 33 | . 34 . Maximum Alert Level . | . . . Low Security (%) 100 | 100 100 . Level 1 . | . . . Level 2 . | . . . Level 3 . | . . . Level 4 . | . . . Level 5 . | . . . High Security . | . . . Max Security . | . . . Squads Dispatched . | . . . Investigation . | . . . Extermination . | . . . Reinforcement . | . . . Assault . | . . . Garrison . | . . . Intercept . | . . . Searches Triggered . | . . . Construction Impeded . | . . . Haulers Reinforced . | . . . Active Scanning Responses . | . . . Cargo Convoy Interrupts . | . . . Stealth | -11 -10 -10 --------- Run | Yrd Mat Sub Distress Signals 2 | . 2 . Communications Jammed . | . . . Distress Signals . | . . . Times Spotted 27 | . 16 11 Peak Tracking Total 5 | . 5 3 Tactical Retreats . | . . . Traps | -11 -10 -10 ------- Run | Yrd Mat Sub Traps Triggered 1 | . . 1 Indirectly . | . . . Trap Hack Attempts . | . . . Triggered . | . . . Disarmed . | . . . Reprogrammed . | . . . Reused . | . . . Traps Extracted . | . . . Installed . | . . . Triggered . | . . . Machines | -11 -10 -10 ---------- Run | Yrd Mat Sub Machines Disabled . | . . . Max in Single Turn . | . . . Machines Repaired . | . . . Machines Dismantled . | . . . Machines Sabotaged . | . . . Overloaded Fab Kills . | . . . Hacking | -11 -10 -10 --------- Run | Yrd Mat Sub Machines Accessed 7 | . 7 . Terminals 7 | . 7 . Fabricators . | . . . Repair Stations . | . . . Recycling Units . | . . . Scanalyzers . | . . . Garrison Access . | . . . Total Hacks 20 | . 20 . Successful 11 | . 11 . Failed 8 | . 8 . Catastrophic 2 | . 2 . Database Lockouts 1 | . 1 . Manual 23 | . 23 . Terminals 20 | . 20 . Fabricators . | . . . Repair Stations . | . . . Recycling Units . | . . . Scanalyzers . | . . . Garrison Access . | . . . Terminal Hacks 4 | . 4 . Part Schematic 2 | . 2 . Terminal Index 1 | . 1 . Zone Layout 1 | . 1 . Fabricator Hacks . | . . . Repair Station Hacks . | . . . Recycling Unit Hacks . | . . . Scanalyzer . | . . . Garrison Access Hacks . | . . . Unauthorized Hacks 7 | . 7 . Terminals 7 | . 7 . Botnet 7 | . 7 . Fabricators . | . . . Repair Stations . | . . . Recycling Units . | . . . Scanalyzers . | . . . Garrison Access . | . . . Data Cores Recovered . | . . . Used . | . . . Hacking Detections 7 | . 7 . Full Trace Events . | . . . Feedback Events . | . . . Feedback Blocked . | . . . Robot Schematics Acquired . | . . . Robots Built . | . . . Authchips . | . . . Time . | . . . Total Robot Build Rating . | . . . Part Schematics Acquired 2 | . 2 . Parts Built . | . . . Authchips . | . . . Time . | . . . Total Part Build Rating . | . . . Parts Repaired . | . . . Time . | . . . Parts Recycled . | . . . Recycled Matter . | . . . Retrieved Matter . | . . . Retrieved Components . | . . . Parts Scanalyzed . | . . . Part Schematics Acquired . | . . . Parts Damaged . | . . . Bothacking | -11 -10 -10 ------------ Run | Yrd Mat Sub Used RIF Installer . | . . . Robots Hacked . | . . . Non-combat . | . . . Combat . | . . . Robot Hacks Applied . | . . . Relay Couplers Released . | . . . Fabnet Peak Effective % . | . . . Robots Rewired . | . . . Allies Hacked . | . . . Hacks Repelled . | . . . Allies | -11 -10 -10 -------- Run | Yrd Mat Sub Total Allies . | . . . Largest Group . | . . . Highest-Rated Group . | . . . Highest-Rated Ally . | . . . Total Orders . | . . . Ally Attacks . | . . . Total Damage . | . . . Kills . | . . . Allies Corrupted . | . . . Allies Melted . | . . . Intel | -11 -10 -10 ------- Run | Yrd Mat Sub Robot Analysis Total . | . . . Derelict Logs Recovered . | . . . Drone Launches . | . . . Drone Recoveries . | . . . Exploration | -11 -10 -10 ------------- Run | Yrd Mat Sub Turns Passed 2985 | 31 1756 1198 Spaces Moved 1740 | 35 961 744 Core 31 | 31 . . Treads . | . . . Legs 1149 | 4 961 184 Wheels 560 | . . 560 Hover . | . . . Flight . | . . . Fastest Speed 50 | 50 120 115 Average Speed 151 | 58 168 135 Slowest Speed 210 | 120 190 210 Overloaded Moves . | . . . Propulsion Burnouts . | . . . Robots Hopped . | . . . Cave-ins Triggered 1 | . . 1 Exploration Rate (%) 44 | 4 92 36 Regions Visited 2 Branch Regions 1 Pre-discovered Areas . | . . . Known Exits Taken . | . . . Unknown Exits Taken 2 | 1 1 . Scrap Searched 10 | . . 10 Spaces Dug 17 | . . 17 Terrain Destroyed 111 | . 11 100 Melee 13 | . . 13 Projectile . | . . . AOE 98 | . 11 87 Terrain Rammed . | . . . Walls Destroyed . | . . . Machines Disabled . | . . . Actions | -11 -10 -10 --------- Run | Yrd Mat Sub Total 1933 | 45 1042 846 Wait 11 | . 10 1 Move 1737 | 34 960 743 Hop . | . . . Pick Up 35 | 5 23 7 Fast Attach 3 | 1 1 1 Attach 12 | 5 2 5 Detach . | . . . Swap 14 | . 3 11 Drop 16 | . 9 7 Fire 81 | . 34 47 Melee 23 | . . 23 Ram . | . . . Kick . | . . . Crush . | . . . Escape Stasis 1 | . . 1 Rewire . | . . . Trap . | . . . Miscellaneous . | . . . Route ------- -11/Scrapyard -10/Materials (discovered 5 exits: [*Mat x3] / [*Min] / [*Sub]) -10/Subcaves History --------- Turn | Location | Event 5 | -11/Scrapyard | Discovered new exit (range 16) 32 | -11/Scrapyard | Entered Materials 174 | -10/Materials | Central database locked down 201 | -10/Materials | Discovered new exit (range 6) 309 | -10/Materials | Build established: Mutant 438 | -10/Materials | Discovered new exit (range 15) 1180 | -10/Materials | Discovered new exit (range 11) 1587 | -10/Materials | Discovered new exit (range 16) 1766 | -10/Materials | Discovered new exit (range 8) 1788 | -10/Materials | Entered Subcaves 2146 | -10/Subcaves | Core integrity fell below 50% 2393 | -10/Subcaves | A swath of the cavern ceiling suddenly collapsed 2555 | -10/Subcaves | Crushed by falling debris 2958 | -10/Subcaves | A Subdweller sparked back to life 2958 | -10/Subcaves | A Subdweller sparked back to life 2958 | -10/Subcaves | A Subdweller sparked back to life 2972 | -10/Subcaves | Core integrity fell below 20% 2986 | -10/Subcaves | Destroyed by 61-I8V(R) with Subdweller Laser Last Messages --------------- 02701_ Dropped Sub. Machine Gun. 02703_ Acquired Sub. Laser. 02848_ Acquired 46 matter. 02853_ Acquired 5 matter. 02856_ Acquired 6 matter. 02859_ Acquired 12 matter. 02892_ Acquired 7 matter. 02893_ Acquired 11 matter. 02895_ Acquired 9 matter. 02898_ Acquired 1 matter. 02958_ TY-HF4(R) creaks and sparks as it begins to move. 02958_ FZ-ADS(R) creaks and sparks as it begins to move. 02958_ 78-X4D(R) creaks and sparks as it begins to move. 02959_ 78-X4D(R) suffers critical hit (Destroy). 02977_ 78-X4D(R) destroyed. 02978_ Lgt. Ion Engine destroyed. 02983_ TY-HF4(R) destroyed. Map ----- +----------------------------------------------------+ | ?????????????????????????????????????????????##" | | ?????????????????????????????????????????????# "" | | ?????????????????????????????????????????????###" | | ???????????????????????????????????????????????## | | ???????????????????????????????????????????????## | | ???????????????????????????????????????????????# | | ???????????????????????????????????????????????# | | ???????????????????????????????????????????????## | | ????????????????????????????????????????????????## | | ?????????????????????????????????????????????????? | | ?????????????????????????????????????????????????? | | ?????????????????????????????????????????????????? | | ???????????????????????????????????????###???????? | | ??????????????????????????????????????## ##??????? | | ??????????????????????????????????????#" #??????? | | ????????????????????????????????####??# " #??????? | | ??????????????????????????????### ##?#" ###????? | | ?????????????????????????????## ### " ##?### | | ??????????????#????########### # %"" ### | | ?????????????##""### | | ?????????????#""" | | ?????????????##"" ### ## ##"##" # ## | | ??????????????#### #?# < <##########"""""##### | | ?????????????????######## !< #???????# ""###??#" | | ??????????????????????##%*% < #???????# "#??# " | | ??????????????????????# !@& #???????# ##?#"% | | ?????????????????????#R # < #??????? #??#" | | ??????????????????? ####<##?????? #??#" | | ?????????????????# ?????????????#""##??# | | ????????????????# R ?????????????# ???? | | ??????????????? " ??????????????? ????? | | ??????????????###" ?????????????????????? | | ???????????????# ???????????????????? | | ???????????????# ??????????????????? ? | | ???????????????## ????????????????????# ?? | | ????????????????########????????????????????# ??? | | ?????????????????????????????????????????????#???? | | ?????????????????????????????????????????????????? | | ?????????????????????????????????????????????????? | | ?????????????????????????????????????????????????? | | ?????????????????????????????????????????????????? | | ?????????????????????????????????????????????????? | | ?????????????????????????????????????????????????? | | ?????????????????????????????????????????????????? | | ?????????????????????????????????????????????????? | | ?????????????????????????????????????????????????? | | ?????????????????????????????????????????????????? | | ?????????????????????????????????????????????????? | | ?????????????????????????????????????????????????? | | ?????????????????????????????????????????????????? | +----------------------------------------------------+ Best States ------------- Heat Dissipation 25 Energy Generation 10 Energy Capacity 250 Matter Stores 300 Matter Capacity 300 Sight Range 16 Terrain Scan Density 10 Resistance: KI 20 Resistance: TH 20 Resistance: EX 20 Resistance: EM 20 Resistance: I 20 Resistance: S 20 Resistance: P 20 Utility Shielding 33 Evasion (%) 55 Offensive Hacking 10 Item Schematics ----------------- Cargo Storage Unit | -10/Materials | Hacked Sensor Array | -10/Materials | Hacked Robot Schematics ------------------ None Fabricated ------------ Nothing Alien Tech Used ----------------- None Achievements -------------- None Challenges ------------ None Game ------ Seed LegBeamSegregator Manual? 0 Play Time 00:20:34 Cumulative 90.0 hours Start 2024.07.27 @ 06:47:51 End 2024.07.27 @ 07:04:26 Sessions 1 Manual Loads 0 Difficulty Adventurer Special Mode None Game No. 126 Rogue 0 Adventurer 126 Explorer 0 Win Type - Total 0 Types 0/0/0/0/0/0/0/0/0 Lore% 45 Gallery% 47 Achievement% 34 Wizard Run 0 Options --------- Layout 2 ASCII 0 Keyboard 0 Movement Mouse Keybinds 0 Fullscreen 2 Font 48/Smallcaps Map View 50x44 Zoom Use 0% Tactical HUD 1 Map Filters NONE Filters NONE Steam 1 RUN: f50ccfdf-50eb-48a1-ab40-a94d9321b513